fUST/lending_fUST_20251007
["ID","MTS","AMOUNT","RATE_DAILY","PERIOD"]
[389758681,1759834233228,-500.0,0.00017672,2]
[389758682,1759834233237,-500.0,0.00017672,2]
[389758683,1759834233247,-500.0,0.00017672,2]
[389758684,1759834233257,-500.0,0.00017672,2]
[389758685,1759834233266,-500.0,0.00017672,2]
[389758686,1759834233276,-490.9219969,0.00017672,2]
[389758687,1759834233285,-500.0,0.00017672,2]
[389758688,1759834233295,-500.0,0.00017672,2]
[389758689,1759834233304,-500.0,0.00017672,2]
[389758690,1759834233314,-354.93094416,0.00017672,2]
[389758691,1759834233324,-500.0,0.00017672,2]
[389758692,1759834233333,-382.68627582,0.00017672,2]
[389758693,1759834233343,-500.0,0.00017672,2]
[389758694,1759834233353,-500.0,0.00017672,2]
[389758695,1759834233363,-500.0,0.00017672,2]
[389758696,1759834233372,-500.0,0.00017672,2]
[389758697,1759834233381,-500.0,0.00017672,2]
[389758698,1759834233391,-500.0,0.00017672,2]
[389758699,1759834233401,-500.0,0.00017672,2]
[389758700,1759834233410,-500.0,0.00017672,2]
[389758701,1759834233419,-500.0,0.00017672,2]
[389758702,1759834233429,-500.0,0.00017672,2]
[389758703,1759834233439,-328.0867444,0.00017672,2]
[389758704,1759834233448,-500.0,0.00017672,2]
[389758705,1759834233458,-500.0,0.00017672,2]
[389758706,1759834233467,-500.0,0.00017672,2]
[389758707,1759834233477,-500.0,0.00017672,2]
[389758708,1759834233487,-500.0,0.00017672,2]
[389758709,1759834233496,-500.0,0.00017672,2]
[389758710,1759834233506,-500.0,0.00017672,2]
[389758711,1759834233516,-500.0,0.00017672,2]
[389758712,1759834233525,-500.0,0.00017672,2]
[389758713,1759834233534,-500.0,0.00017672,2]
[389758714,1759834233544,-500.0,0.00017672,2]
[389758715,1759834233553,-500.0,0.00017672,2]
[389758716,1759834233563,-500.0,0.00017672,2]
[389758717,1759834233572,-323.03847125,0.00017672,2]
[389758718,1759834233582,-500.0,0.00017672,2]
[389758719,1759834233591,-500.0,0.00017672,2]
[389758720,1759834233600,-500.0,0.00017672,2]
[389758721,1759834233609,-500.0,0.00017672,2]
[389758722,1759834233619,-500.0,0.00017672,2]
[389758723,1759834233628,-500.0,0.00017672,2]
[389758724,1759834233637,-500.0,0.00017672,2]
[389758725,1759834233646,-500.0,0.00017672,2]
[389758726,1759834233657,-499.99999999,0.00017672,2]
[389758727,1759834233666,-500.0,0.00017672,2]
[389758728,1759834233675,-500.0,0.00017672,2]
[389758729,1759834233684,-500.0,0.00017672,2]
[389758730,1759834233694,-500.0,0.00017673,2]
[389758731,1759834233703,-500.0,0.00017673,2]
[389758732,1759834233712,-500.0,0.00017673,2]
[389758733,1759834233722,-510.42976318,0.00017673,2]
[389758734,1759834233732,-500.0,0.00017673,2]
[389758735,1759834233742,-500.0,0.00017673,2]
[389758736,1759834233751,-500.0,0.00017673,2]
[389758737,1759834233760,-500.0,0.00017673,2]
[389758738,1759834233769,-500.0,0.00017673,2]
[389758739,1759834233778,-500.0,0.00017673,2]
[389758740,1759834233786,-200.19994985,0.00017673,2]
[389758741,1759834233796,-500.0,0.00017673,2]
[389758742,1759834233805,-500.0,0.00017673,2]
[389758743,1759834233815,-355.66107437,0.00017673,2]
[389758744,1759834233826,-500.0,0.00017673,2]
[389758745,1759834233838,-500.0,0.00017673,2]
[389758746,1759834233848,-183.56664551,0.00017673,2]
[389758747,1759834233857,-500.0,0.00017673,2]
[389758748,1759834233866,-155.53163081,0.00017673,2]
[389758749,1759834233875,-500.66191334,0.00017673,2]
[389758750,1759834233885,-500.0,0.00017673,2]
[389758751,1759834233894,-169.32250885,0.00017673,2]
[389758752,1759834233904,-500.0,0.00017673,2]
[389758753,1759834233913,-500.44455472,0.00017673,2]
[389758754,1759834233923,-642.265889,0.00017673,2]
[389758755,1759834233931,-500.0,0.00017673,2]
[389758756,1759834233941,-500.0,0.00017673,2]
[389758757,1759834233950,-214.12108355,0.00017673,2]
[389758758,1759834233960,-521.75497644,0.00017673,2]
[389758759,1759834233970,-561.07990723,0.00017673,2]
[389758760,1759834233979,-500.0,0.00017673,2]
[389758761,1759834233989,-161.79997889,0.00017673,2]
[389758762,1759834233999,-500.0,0.00017673,2]
[389758763,1759834234008,-500.45622185,0.00017673,2]
[389758764,1759834234018,-500.18442193,0.00017673,2]
[389758765,1759834234028,-500.0,0.00017673,2]
[389758766,1759834234037,-500.0,0.00017673,2]
[389758767,1759834234047,-503.26694827,0.00017673,2]
[389758768,1759834234058,-500.0,0.00017673,2]
[389758769,1759834234068,-500.0,0.00017673,2]
[389758770,1759834234077,-500.0,0.00017673,2]
[389758771,1759834234090,-157.23829232,0.00017673,2]
[389758772,1759834234100,-500.0,0.00017673,2]
[389758773,1759834234109,-500.0,0.00017673,2]
[389758774,1759834234118,-500.0,0.00017673,2]
[389758775,1759834234128,-500.0,0.00017673,2]
[389758776,1759834234139,-500.625386,0.00017673,2]
[389758777,1759834234148,-207.80144154,0.00017673,2]
[389758778,1759834234158,-324.51145436,0.00017673,2]
[389758779,1759834234167,-500.0,0.00017673,2]
[389758780,1759834234176,-434.81672206,0.00017673,2]
[389758781,1759834234185,-500.0,0.00017673,2]
[389758782,1759834234195,-500.21395875,0.00017673,2]
[389758783,1759834234204,-392.9227609,0.00017676,2]
[389758784,1759834234213,-192.40753985,0.00017676,2]
[389758785,1759834234222,-155.0,0.00017676,2]
[389758786,1759834234231,-28622.23914869,0.00017677,2]
[389758787,1759834234245,-1335.13735634,0.00017677,2]
[389758819,1759834238401,-12427.996,0.00017677,2]
[389758821,1759834238413,-1677.20018316,0.00017677,2]
[389758845,1759834240514,-86029.58529201,0.00017677,2]
[389758860,1759834246644,-837.92167534,0.00017677,2]
[389758861,1759834246655,-18941.03641105,0.00017677,2]
[389758862,1759834246666,-20613.9378471,0.00017677,2]
[389758863,1759834246689,-1090.3460293,0.00017677,2]
[389758864,1759834246716,-33008.77342712,0.00017677,2]
[389758867,1759834277137,160.0,0.00028767,120]
[389758868,1759834329944,155.0,0.00028767,120]
[389758869,1759834421086,156.105633,0.00024,30]
[389758870,1759834455542,4634.95671695,0.000196,14]
[389758871,1759834500565,2318.01112595,0.000196,14]
[389758872,1759834668554,-300.0,0.00016677,2]
[389758873,1759834682886,300.0,0.00016677,2]
[389758874,1759834742276,300.0,0.00016677,2]
[389758875,1759834802290,300.0,0.00016677,2]
[389758876,1759834862422,300.0,0.00016677,2]
[389758877,1759834899869,347.5509512,0.00015844,2]
[389758878,1759834901859,1390.20380481,0.00015844,2]
[389758879,1759834903527,3127.95856082,0.00015844,2]
[389758880,1759834905053,3334.29668317,0.00015844,2]
[389758881,1759834905075,2220.95772085,0.00015844,2]
[389758882,1759834957552,-300.0,0.00017009,2]
[389758883,1759834962391,156.105633,0.00024,30]
[389758884,1759834982766,300.0,0.00017009,2]
[389758885,1759835039236,1869.75537997,0.00028767,120]
[389758886,1759835042459,300.0,0.00017009,2]
[389758887,1759835045626,171.2565431,0.00016687,2]
[389758888,1759835102780,300.0,0.00017009,2]
[389758890,1759835162851,300.0,0.00017009,2]
[389758891,1759835172073,2000.0,0.00028767,120]
[389758892,1759835179887,2000.0,0.00028767,120]
[389758893,1759835189080,1000.0,0.00028767,120]
[389758902,1759835204549,311.91119581,0.00016678,2]
[389758903,1759835222392,300.0,0.00017009,2]
[389758904,1759835224344,1000.0,0.00028767,120]
[389758914,1759835262642,230.3614293,0.00028767,120]
[389758915,1759835283353,186.0,0.00015225,7]
[389758916,1759835283644,186.0,0.00015225,7]
[389758918,1759835342701,300.0,0.00017009,2]
[389758919,1759835354768,267.63376735,0.00016443,2]
[389758920,1759835402281,300.0,0.00017009,2]
[389758951,1759835432729,-300.0,0.0001701,2]
[389758953,1759835432740,-300.0,0.0001701,2]
[389758955,1759835432750,-300.0,0.0001701,2]
[389758958,1759835432759,-300.0,0.0001701,2]
[389758959,1759835432770,-300.0,0.0001701,2]
[389758961,1759835432779,-300.0,0.0001701,2]
[389758964,1759835432789,-300.0,0.0001701,2]
[389758966,1759835432799,-300.0,0.0001701,2]
[389758968,1759835432808,-300.0,0.0001701,2]
[389758969,1759835432818,-300.0,0.0001701,2]
[389758971,1759835432828,-300.0,0.0001701,2]
[389758973,1759835432838,-300.0,0.0001701,2]
[389758975,1759835432848,-300.0,0.0001701,2]
[389758977,1759835432858,-300.0,0.0001701,2]
[389758980,1759835432868,-300.0,0.0001701,2]
[389758982,1759835432878,-353.56150045,0.00017308,2]
[389758983,1759835432887,-600.0,0.00017349,2]
[389758985,1759835432896,-1351.72789146,0.00017381,2]
[389758987,1759835432905,-159.17259756,0.00017477,2]
[389758989,1759835432914,-7247.57994294,0.00017477,2]
[389758991,1759835432923,-433.09,0.00017567,3]
[389758992,1759835432932,-216.54,0.00017567,3]
[389758993,1759835432942,-649.65,0.00017567,3]
[389758994,1759835432951,-500.0,0.00017573,2]
[389758995,1759835432960,-500.0,0.00017573,2]
[389758996,1759835432969,-183.04545071,0.00017573,2]
[389758997,1759835432978,-500.0,0.00017573,2]
[389758998,1759835432986,-500.0,0.00017573,2]
[389758999,1759835432995,-500.0,0.00017573,2]
[389759000,1759835433004,-500.0,0.00017573,2]
[389759001,1759835433014,-500.57425859,0.00017573,2]
[389759002,1759835433023,-500.0,0.00017573,2]
[389759003,1759835433031,-500.0,0.00017573,2]
[389759004,1759835433040,-275.04593264,0.00017576,2]
[389759005,1759835433049,-276.76911077,0.00017576,2]
[389759006,1759835433058,-206.10343824,0.00017576,2]
[389759007,1759835433067,-480.89852716,0.00017576,2]
[389759008,1759835433076,-192.53215284,0.00017576,2]
[389759009,1759835433085,-500.0,0.00017576,2]
[389759011,1759835433095,-500.0,0.00017576,2]
[389759012,1759835433104,-500.0,0.00017576,2]
[389759014,1759835433113,-332.30384712,0.00017576,2]
[389759016,1759835433122,-378.04761282,0.00017576,2]
[389759019,1759835433133,-25.04451391,0.00017576,2]
[389759021,1759835433143,-228.63694873,0.00017576,2]
[389759023,1759835433152,-11752.56537311,0.00017577,2]
[389759065,1759835438676,-42614.34877191,0.00017577,2]
[389759067,1759835438687,-16252.07608868,0.00017577,2]
[389759070,1759835438702,-460.0,0.00017577,2]
[389759072,1759835438713,-540.0,0.00017577,2]
[389759074,1759835438724,-1790.48099713,0.00017577,2]
[389759249,1759835440686,-4694.18939459,0.00017577,2]
[389759251,1759835440698,-19794.25745171,0.00017577,2]
[389759253,1759835440713,-254.01130894,0.00017577,2]
[389759554,1759835443655,-510.33522986,0.00017577,2]
[389759556,1759835443666,-8173.62668011,0.00017577,2]
[389759560,1759835443694,-507.34188192,0.00017577,2]
[389759562,1759835443709,-894.15469824,0.00017577,2]
[389759568,1759835443751,-5312.89199758,0.00017577,2]
[389759847,1759835446614,-13864.1999996,0.00017577,2]
[389759854,1759835446671,-111708.27401636,0.00017577,2]
[389759856,1759835446682,-12109.39688519,0.00017577,2]
[389763704,1759835517314,1997.66640902,0.00017009,2]
[389763709,1759835563149,-245.39252789,0.00017308,2]
[389763710,1759835563180,-980.58854143,0.00017308,2]
[389763723,1759835681931,1465.02,0.00028767,120]
[389763725,1759835692650,173.0,7.9e-07,2]
[389763728,1759835693700,173.0,7.9e-07,2]
[389763751,1759835805432,5000.0,0.00017308,2]
[389763752,1759835813501,2202.04786136,0.00017308,2]
[389763753,1759835813524,2797.95213864,0.00017308,2]
[389763755,1759835821900,5000.0,0.00017308,2]
[389763756,1759835829995,1211.79038663,0.00017308,2]
[389763764,1759835838213,990.26747473,0.00017308,2]
[389763765,1759835838234,4009.73252527,0.00017308,2]
[389763776,1759835846122,4801.63075737,0.00017308,2]
[389763784,1759835862462,777.71162974,0.00017308,2]
[389763785,1759835865651,-300.0,0.00017476,2]
[389763786,1759835865679,-1200.0,0.00017476,2]
[389763788,1759835883449,300.0,0.00017476,2]
[389763789,1759835914008,203.58931635,0.00017476,2]
[389763793,1759835942416,300.0,0.00017476,2]
[389763794,1759835959894,780.3677158,0.00028767,120]
[389763795,1759836002007,267.0,0.00017476,2]
[389763796,1759836002141,300.0,0.00017476,2]
[389763797,1759836002558,300.0,0.00017476,2]
[389763798,1759836002909,300.0,0.00017476,2]
[389763799,1759836003129,1200.0,0.00017476,2]
[389763800,1759836011678,3829.42068365,0.000174,2]
[389763801,1759836011700,1002.29927831,0.000174,2]
[389763802,1759836017462,307.79135254,0.000196,14]
[389763834,1759836063010,300.0,0.00017476,2]
[389763846,1759836122791,300.0,0.00017476,2]
[389763848,1759836181401,216.54,0.00017467,3]
[389763849,1759836182633,300.0,0.00017476,2]
[389763850,1759836192049,649.64,0.00017467,3]
[389763851,1759836200519,804.59814312,0.00017476,2]
[389763852,1759836216036,1404.58814312,0.00017476,2]
[389763853,1759836239180,1739.97,0.00017476,2]
[389763854,1759836242912,300.0,0.00017476,2]
[389763855,1759836262351,1855.44185688,0.00017476,2]
[389763856,1759836271773,840.0,0.00017476,2]
[389763857,1759836271947,286.93257857,0.000174,2]
[389763858,1759836271970,2934.21406273,0.000174,2]
[389763859,1759836280165,287.656228,0.00016758,2]
[389763860,1759836280212,804.59814312,0.00017476,2]
[389763861,1759836287858,1500.0,0.00017476,2]
[389763862,1759836289932,-7867.18883155,0.00017477,2]
[389763863,1759836293907,-10000.01,0.00017477,2]
[389763864,1759836296274,4473.54156615,0.00017476,2]
[389763865,1759836296297,526.45843385,0.00017476,2]
[389763866,1759836298038,-5000.01,0.00017477,2]
[389763867,1759836302579,300.0,0.00017476,2]
[389763868,1759836302967,-9700.01,0.00017477,2]
[389763869,1759836304336,5000.0,0.00017476,2]
[389763871,1759836309421,-5000.01,0.00017477,2]
[389763872,1759836309444,-10000.01,0.00017477,2]
[389763873,1759836313081,1720.92632688,0.00017476,2]
[389763874,1759836313219,-8279.08367312,0.00017477,2]
[389763875,1759836313362,-10000.01,0.00017477,2]
[389763876,1759836321158,2452.62523927,0.00017476,2]
[389763877,1759836321183,2547.37476073,0.00017476,2]
[389763878,1759836323383,-5000.01,0.00017477,2]
[389763879,1759836323947,-10000.01,0.00017477,2]
[389763880,1759836327188,-10000.01,0.00017477,2]
[389763881,1759836329440,500.0,0.00017476,2]
[389763882,1759836329468,500.0,0.00017476,2]
[389763883,1759836329496,500.0,0.00017476,2]
[389763884,1759836329525,500.0,0.00017476,2]
[389763885,1759836329552,500.0,0.00017476,2]
[389763886,1759836329580,4952.63523927,0.00017476,2]
[389763887,1759836329602,47.36476073,0.00017476,2]
[389763888,1759836329635,192.44617744,0.00017476,2]
[389763889,1759836329681,500.0,0.00017476,2]
[389763890,1759836329719,500.0,0.00017476,2]
[389763891,1759836329751,500.0,0.00017476,2]
[389763892,1759836329780,500.0,0.00017476,2]
[389763893,1759836329812,643.35842221,0.00017476,2]
[389763894,1759836329844,452.05770615,0.00017476,2]
[389763895,1759836329892,500.0,0.00017476,2]
[389763896,1759836330171,500.0,0.00017476,2]
[389763897,1759836330479,500.0,0.00017476,2]
[389763898,1759836330507,431.99060925,0.00017476,2]
[389763899,1759836330537,500.0,0.00017476,2]
[389763900,1759836330581,500.0,0.00017476,2]
[389763901,1759836331429,-6280.16708495,0.00017477,2]
[389763902,1759836335334,500.0,0.00017476,2]
[389763903,1759836335365,500.0,0.00017476,2]
[389763904,1759836335396,500.0,0.00017476,2]
[389763905,1759836335427,500.0,0.00017476,2]
[389763906,1759836335457,500.0,0.00017476,2]
[389763907,1759836335488,500.0,0.00017476,2]
[389763908,1759836335562,500.0,0.00017476,2]
[389763909,1759836335594,232.79232422,0.00017476,2]
[389763910,1759836335620,267.20767578,0.00017476,2]
[389763911,1759836335649,215.61988199,0.00017476,2]
[389763912,1759836335713,500.0,0.00017476,2]
[389763913,1759836335831,500.0,0.00017476,2]
[389763914,1759836335863,500.0,0.00017476,2]
[389763915,1759836335896,250.0,0.00017476,2]
[389763916,1759836335926,200.0,0.00017476,2]
[389763917,1759836337595,-3834.39011801,0.00017477,2]
[389763918,1759836337618,-10000.01,0.00017477,2]
[389763919,1759836337712,-10000.01,0.00017477,2]
[389763920,1759836342941,500.0,0.00017476,2]
[389763921,1759836342986,500.0,0.00017476,2]
[389763922,1759836343047,380.00267863,0.00017476,2]
[389763923,1759836343369,-8620.00732137,0.00017477,2]
[389763924,1759836343454,-10000.01,0.00017477,2]
[389763925,1759836343582,-10000.01,0.00017477,2]
[389763926,1759836345346,5000.0,0.00017476,2]
[389763927,1759836345593,500.0,0.00017476,2]
[389763928,1759836345630,650.0,0.00017476,2]
[389763929,1759836345658,37.1797636,0.00017476,2]
[389763930,1759836345678,462.8202364,0.00017476,2]
[389763931,1759836345706,500.0,0.00017476,2]
[389763932,1759836345744,500.0,0.00017476,2]
[389763933,1759836345781,500.0,0.00017476,2]
[389763934,1759836345808,500.0,0.00017476,2]
[389763935,1759836345850,395.72114942,0.00017476,2]
[389763936,1759836345879,500.0,0.00017476,2]
[389763937,1759836349432,-454.28885058,0.00017477,2]
[389763938,1759836349459,-10000.01,0.00017477,2]
[389763939,1759836351552,-10000.01,0.00017477,2]
[389763940,1759836351567,-10000.01,0.00017477,2]
[389763941,1759836351649,-10000.01,0.00017477,2]
[389763942,1759836351920,-10000.01,0.00017477,2]
[389763943,1759836353371,5000.0,0.00017476,2]
[389763944,1759836357542,-5000.01,0.00017477,2]
[389763945,1759836357744,-10000.01,0.00017477,2]
[389763946,1759836357891,-10000.01,0.00017477,2]
[389763947,1759836359451,-10000.01,0.00017477,2]
[389763948,1759836359560,-10000.01,0.00017477,2]
[389763949,1759836359790,-10000.01,0.00017477,2]
[389763950,1759836360040,500.0,0.00017476,2]
[389763951,1759836360071,500.0,0.00017476,2]
[389763952,1759836360361,500.0,0.00017476,2]
[389763953,1759836360400,141.46861418,0.00017476,2]
[389763954,1759836360424,358.53138582,0.00017476,2]
[389763955,1759836360469,500.0,0.00017476,2]
[389763956,1759836360500,500.0,0.00017476,2]
[389763957,1759836360547,500.0,0.00017476,2]
[389763958,1759836360576,298.81632979,0.00017476,2]
[389763959,1759836360606,500.0,0.00017476,2]
[389763960,1759836360635,500.0,0.00017476,2]
[389763961,1759836360679,500.0,0.00017476,2]
[389763962,1759836360719,500.0,0.00017476,2]
[389763963,1759836360766,500.0,0.00017476,2]
[389763964,1759836360794,500.0,0.00017476,2]
[389763965,1759836360842,500.0,0.00017476,2]
[389763966,1759836360871,500.0,0.00017476,2]
[389763967,1759836360901,500.0,0.00017476,2]
[389763968,1759836360930,500.0,0.00017476,2]
[389763969,1759836360960,500.0,0.00017476,2]
[389763970,1759836361008,500.0,0.00017476,2]
[389763971,1759836361056,500.0,0.00017476,2]
[389763972,1759836362016,-9701.20367021,0.00017477,2]
[389763973,1759836362030,-10000.01,0.00017477,2]
[389763974,1759836362043,-10000.01,0.00017477,2]
[389763975,1759836363015,300.0,0.00017476,2]
[389763976,1759836365484,-9700.01,0.00017477,2]
[389763977,1759836365850,-10000.01,0.00017477,2]
[389763978,1759836365873,-10000.01,0.00017477,2]
[389763979,1759836368896,1042.66228439,0.00017476,2]
[389763980,1759836368921,3957.33771561,0.00017476,2]
[389763981,1759836373598,-5000.01,0.00017477,2]
[389763982,1759836373763,-10000.01,0.00017477,2]
[389763983,1759836373877,-10000.01,0.00017477,2]
[389763984,1759836374005,-10000.01,0.00017477,2]
[389763985,1759836374156,-10000.01,0.00017477,2]
[389763986,1759836374359,500.0,0.00017476,2]
[389763987,1759836374418,500.0,0.00017476,2]
[389763988,1759836374473,500.0,0.00017476,2]
[389763989,1759836374510,500.0,0.00017476,2]
[389763990,1759836374539,500.0,0.00017476,2]
[389763991,1759836374568,500.0,0.00017476,2]
[389763992,1759836374597,500.0,0.00017476,2]
[389763993,1759836374646,500.0,0.00017476,2]
[389763994,1759836374674,500.0,0.00017476,2]
[389763995,1759836374704,500.0,0.00017476,2]
[389763996,1759836374742,500.0,0.00017476,2]
[389763997,1759836374783,500.0,0.00017476,2]
[389763998,1759836374813,42.67228439,0.00017476,2]
[389763999,1759836374835,457.32771561,0.00017476,2]
[389764000,1759836374874,500.0,0.00017476,2]
[389764001,1759836374904,500.0,0.00017476,2]
[389764002,1759836374933,500.0,0.00017476,2]
[389764003,1759836374961,500.0,0.00017476,2]
[389764004,1759836375010,500.0,0.00017476,2]
[389764005,1759836375039,500.0,0.00017476,2]
[389764006,1759836375085,500.0,0.00017476,2]
[389764007,1759836375133,500.0,0.00017476,2]
[389764008,1759836375167,500.0,0.00017476,2]
[389764009,1759836375208,500.0,0.00017476,2]
[389764010,1759836375242,500.0,0.00017476,2]
[389764011,1759836375321,500.0,0.00017476,2]
[389764012,1759836375403,500.0,0.00017476,2]
[389764013,1759836375450,500.0,0.00017476,2]
[389764014,1759836375490,500.0,0.00017476,2]
[389764015,1759836375537,500.0,0.00017476,2]
[389764016,1759836375565,500.0,0.00017476,2]
[389764017,1759836375608,500.0,0.00017476,2]
[389764018,1759836375673,500.0,0.00017476,2]
[389764019,1759836375770,42.68228439,0.00017476,2]
[389764020,1759836375795,196.1340454,0.00017476,2]
[389764021,1759836377169,5000.0,0.00017476,2]
[389764022,1759836378175,-8761.21367021,0.00017477,2]
[389764023,1759836378858,500.0,0.00017476,2]
[389764024,1759836383583,-1802.11678,0.00017477,2]
[389764026,1759836384507,500.0,0.00017476,2]
[389764027,1759836385364,500.0,0.00017476,2]
[389764028,1759836385395,2947.84220169,0.00017476,2]
[389764029,1759836385816,500.0,0.00017476,2]
[389764030,1759836385863,500.0,0.00017476,2]
[389764031,1759836385966,232.14527953,0.00017476,2]
[389764032,1759836387612,500.0,0.00017476,2]
[389764033,1759836387658,500.0,0.00017476,2]
[389764034,1759836387714,215.78895878,0.00017476,2]
[389764035,1759836387735,297.92934817,0.00017476,2]
[389764036,1759836393931,5000.0,0.00017477,2]
[389764037,1759836394353,1000.0,0.00017477,2]
[389764038,1759836395700,-425.0,0.000175,2]
[389764039,1759836395779,1000.0,0.00017477,2]
[389764040,1759836397908,5000.0,0.00023888,30]
[389764041,1759836397936,1000.0,0.00017477,2]
[389764042,1759836399561,1000.0,0.00017477,2]
[389764043,1759836400863,1000.0,0.00017477,2]
[389764044,1759836402149,1000.0,0.00017477,2]
[389764045,1759836402443,4150.01,0.000175,2]
[389764046,1759836403480,1000.0,0.00017477,2]
[389764047,1759836404860,1000.0,0.00017477,2]
[389764048,1759836405799,-849.99,0.000175,2]
[389764049,1759836406217,1000.0,0.00017477,2]
[389764050,1759836407655,1000.0,0.00017477,2]
[389764051,1759836408989,1000.0,0.00017477,2]
[389764052,1759836409943,-500.0,0.00017577,2]
[389764053,1759836409973,-290.17927874,0.00017577,2]
[389764054,1759836410314,1000.0,0.00017477,2]
[389764055,1759836411532,1000.0,0.00017477,2]
[389764056,1759836412687,1000.0,0.00017477,2]
[389764057,1759836414005,1000.0,0.00017477,2]
[389764058,1759836415020,1000.0,0.00017477,2]
[389764059,1759836416288,645.75332822,0.00017477,2]
[389764060,1759836418139,2773.8981143,0.00017577,2]
[389764061,1759836418163,2226.1018857,0.00017577,2]
[389764062,1759836426462,5000.0,0.00017577,2]
[389764063,1759836427494,-168.0,0.00017758,2]
[389764064,1759836428802,1463.12404072,0.00017387,2]
[389764065,1759836441999,5000.0,0.00017758,2]
[389764066,1759836445834,429.7743846,0.00017477,2]
[389764067,1759836451198,2771.11157468,0.00017758,2]
[389764068,1759836451220,2228.88842532,0.00017758,2]
[389764069,1759836454246,-2705.0,0.00017794,2]
[389764070,1759836456372,-500.0,0.00017851,2]
[389764072,1759836462165,9000.01,0.00017377,2]
[389764073,1759836462187,10000.01,0.00017377,2]
[389764074,1759836462210,10000.01,0.00017377,2]
[389764075,1759836462232,10000.01,0.00017377,2]
[389764076,1759836462255,10000.01,0.00017377,2]
[389764077,1759836462284,10000.01,0.00017377,2]
[389764078,1759836462308,10000.01,0.00017377,2]
[389764079,1759836462330,10000.01,0.00017377,2]
[389764080,1759836462352,10000.01,0.00017377,2]
[389764081,1759836462374,10000.01,0.00017377,2]
[389764082,1759836462396,10000.01,0.00017377,2]
[389764083,1759836462418,10000.01,0.00017377,2]
[389764084,1759836462442,10000.01,0.00017377,2]
[389764085,1759836462464,10000.01,0.00017377,2]
[389764086,1759836462486,4590.01,0.00017377,2]
[389764087,1759836462510,10000.01,0.00017377,2]
[389764088,1759836462533,10000.01,0.00017377,2]
[389764089,1759836462555,10000.01,0.00017377,2]
[389764090,1759836478495,-1527.68245829,0.00017031,2]
[389764091,1759836478621,-10000.01,0.00017031,2]
[389764092,1759836478774,-1177.69168473,0.00017031,2]
[389764093,1759836478834,-7644.62663054,0.00017203,2]
[389764094,1759836478919,-10000.01,0.00017203,2]
[389764095,1759836479042,-10000.01,0.00017203,2]
[389764096,1759836479176,-10000.01,0.00017203,2]
[389764097,1759836479304,-10000.01,0.00017203,2]
[389764098,1759836479451,-10000.01,0.00017203,2]
[389764099,1759836481475,-1815.14929185,0.00017203,2]
[389764100,1759836491328,5000.0,0.00017203,2]
[389764104,1759836497582,-300.0,0.00017376,2]
[389764105,1759836498981,5000.0,0.00017203,2]
[389764106,1759836512616,500.0,0.00017376,2]
[389764107,1759836512646,500.0,0.00017376,2]
[389764108,1759836512674,182.59538025,0.00017376,2]
[389764109,1759836512701,545.7271549,0.00017376,2]
[389764110,1759836512728,605.53595124,0.00017376,2]